bitfinex/quotes_ETHUSD_20250223
["timestamp","ask_amount","ask_price","bid_price","bid_amount"]
[1740341787221,3.56837,2802.4,2802.1,0.8277]
[1740341789020,3.56819,2802.6,2802.1,0.8277]
[1740341789226,3.56828,2802.5,2802.1,0.8277]
[1740341790523,3.56828,2802.5,2802.2,0.08286596]
[1740341793128,3.56811,2802.6,2802.2,0.08286596]
[1740341793304,3.56826,2802.5,2802.2,0.08286596]
[1740341794429,3.56782,2802.9,2802.3,0.55]
[1740341794598,3.56787,2802.8,2802.4,0.7845]
[1740341795122,3.56787,2802.8,2802.5,0.08316674]
[1740341796227,3.56782,2802.9,2802.5,0.08316674]
[1740341796409,3.56786,2802.8,2802.5,0.08316674]
[1740341796737,3.56787,2802.8,2802.5,0.08316674]
[1740341798599,3.0,2802.9,2802.5,3.65138674]
[1740341798940,6.56784,2802.9,2802.5,0.08316674]
[1740341799695,3.56787,2802.8,2802.5,0.08316674]
[1740341800496,1.3689399,2803.0,2802.5,0.08316674]
[1740341800701,3.5681,2802.7,2802.5,0.08316674]
[1740341801938,3.56786,2802.8,2802.5,0.08316674]
[1740341805616,6.56779,2802.9,2802.5,0.08316674]
[1740341806250,3.56786,2802.8,2802.5,0.08316674]
[1740341806453,6.56773,2802.9,2802.5,0.08316674]
[1740341806633,3.56787,2802.8,2802.5,0.08316674]
[1740341806835,6.56774,2802.9,2802.5,0.08316674]
[1740341807032,7.05699805,2802.9,2802.5,0.08316674]
[1740341807659,3.56786,2802.8,2802.5,0.08316674]
[1740341807860,5.425388,2803.3,2802.8,3.56779]
[1740341808031,5.18094608,2803.4,2802.8,3.56779]
[1740341808032,4.48399609,2803.4,2802.8,3.56779]
[1740341808247,3.8290484,2803.4,2802.9,0.08336452]
[1740341808919,3.56723,2803.3,2802.9,0.08336452]
[1740341809119,3.56741,2803.2,2802.9,0.08336452]
[1740341809350,3.56741,2803.2,2802.7,4.3235]
[1740341809552,3.56741,2803.2,2802.8,3.65116388]
[1740341810868,7.3962684,2803.4,2802.9,3.56769]
[1740341811047,3.56726,2803.3,2802.8,0.08334388]
[1740341811254,1.35831293,2803.4,2803.0,0.08328633]
[1740341811560,3.56744,2803.2,2803.1,0.08325756]
[1740341811739,3.56744,2803.2,2802.7,4.32358]
[1740341811935,3.56744,2803.2,2802.8,0.08334388]
[1740341812151,3.56744,2803.2,2802.7,4.32358]
[1740341812554,3.56744,2803.2,2802.8,0.08334388]
[1740341812760,3.56744,2803.2,2802.7,0.7556]
[1740341812961,3.56744,2803.2,2802.8,3.56783]
[1740341813164,3.56744,2803.2,2802.9,0.0833151]
[1740341814554,3.56737,2803.2,2802.9,0.0833151]
[1740341814930,3.56737,2803.2,2802.7,4.32358]
[1740341815129,3.56737,2803.2,2802.8,0.08322033]
[1740341815330,3.56737,2803.2,2802.7,4.32358]
[1740341815531,3.56737,2803.2,2802.8,0.08322033]
[1740341815843,3.56737,2803.2,2802.7,4.32358]
[1740341816078,3.56737,2803.2,2802.9,0.08319155]
[1740341816362,0.84929829,2803.2,2802.7,0.7556]
[1740341816573,1.35831293,2803.4,2802.7,4.32358]
[1740341816873,3.56744,2803.2,2802.7,4.32358]
[1740341817431,3.56744,2803.2,2802.7,0.7556]
[1740341817631,3.56749,2803.1,2802.7,0.7556]
[1740341817833,3.56744,2803.2,2802.7,4.32358]
[1740341817834,7.13488,2803.2,2802.7,4.32358]
[1740341818263,3.56744,2803.2,2802.7,4.32358]
[1740341818668,7.13491,2803.2,2802.7,4.32358]
[1740341819164,3.56792,2802.8,2802.6,0.55]
[1740341820567,3.56792,2802.8,2802.7,0.08024119]
[1740341820758,3.56792,2802.8,2802.5,6.188]
[1740341820940,3.56811,2802.6,2802.5,6.188]
[1740341821147,3.56811,2802.6,2802.5,0.798]
[1740341821867,3.56811,2802.6,2802.3,0.798]
[1740341823074,3.56815,2802.6,2802.3,0.798]
[1740341825169,3.568,2802.7,2802.1,6.738]
[1740341825170,0.8133,2802.7,2802.1,6.738]
[1740341825371,3.56862,2802.2,2801.9,0.798]
[1740341825588,3.56875,2802.1,2801.9,0.798]
[1740341826086,3.56919,2801.8,2801.6,0.798]
[1740341826864,3.56901,2801.9,2801.7,0.55]
[1740341827857,3.56881,2802.1,2801.7,0.55]
[1740341830007,3.56889,2802.0,2801.7,0.55]
[1740341830449,3.83490523,2802.0,2801.7,0.55]
[1740341831673,3.83490523,2802.0,2801.7,4.11925]
[1740341831674,0.26601523,2802.0,2801.7,4.11925]
[1740341835462,0.26601523,2802.0,2801.8,0.075161]
[1740341835891,0.26601523,2802.0,2801.7,4.11925]
[1740341836090,0.26601523,2802.0,2801.9,0.07249168]
[1740341836301,0.26601523,2802.0,2801.8,0.07252048]
[1740341836521,0.26601523,2802.0,2801.9,0.07249168]
[1740341836888,0.26601523,2802.0,2801.7,4.11925]
[1740341837202,0.26601523,2802.0,2801.8,0.07252048]
[1740341837382,0.26601523,2802.0,2801.7,4.11919]
[1740341837582,0.26601523,2802.0,2801.8,0.07252048]
[1740341837788,0.26601523,2802.0,2801.7,4.11919]
[1740341837970,0.26601523,2802.0,2801.8,0.07252048]
[1740341838171,0.26601523,2802.0,2801.7,4.11919]
[1740341838466,0.26601523,2802.0,2801.8,0.07252048]
[1740341838904,0.26601523,2802.0,2801.7,4.11918]
[1740341839096,0.26601523,2802.0,2801.9,0.07249168]
[1740341839297,0.26601523,2802.0,2801.8,0.07252048]
[1740341839593,0.26601523,2802.0,2801.9,0.07249168]
[1740341839805,0.26601523,2802.0,2801.7,7.68838]
[1740341840007,0.26601523,2802.0,2801.8,0.07252048]
[1740341840206,0.26601523,2802.0,2801.7,7.68838]
[1740341840408,0.26601523,2802.0,2801.8,0.07252048]
[1740341840581,0.26601523,2802.0,2801.7,4.11918]
[1740341840781,0.26601523,2802.0,2801.8,0.07280887]
[1740341840986,0.26601523,2802.0,2801.7,4.11917]
[1740341841183,0.26601523,2802.0,2801.8,0.07280887]
[1740341841384,0.26670263,2802.8,2802.0,4.39837]
[1740341841612,3.83457263,2802.8,2802.3,4.11843]
[1740341841813,0.26670263,2802.8,2802.4,0.07311394]
[1740341842111,3.83456263,2802.8,2802.4,3.64138394]
[1740341842606,3.56801,2802.7,2802.4,0.07311394]
[1740341843907,0.26670263,2802.8,2802.4,3.64145394]
[1740341844072,3.83457263,2802.8,2802.4,4.47095394]
[1740341844477,3.83457263,2802.8,2802.4,0.90261394]
[1740341845211,0.8321,2803.2,2802.6,3.56803]
[1740341845534,0.8321,2803.2,2802.7,4.47041759]
[1740341845813,3.56748,2803.1,2802.7,4.47041759]
[1740341846581,3.56729,2803.3,2802.8,3.56779]
[1740341846780,3.56729,2803.3,2802.9,0.07257459]
[1740341848014,4.35865,2803.6,2802.9,3.64020459]
[1740341848184,3.56704,2803.5,2803.0,3.56753]
[1740341848399,6.56704,2803.5,2803.1,0.07251705]
[1740341848588,0.27318927,2803.3,2803.1,0.07251705]
[1740341848911,6.56704,2803.5,2803.1,0.07251705]
[1740341848912,3.0,2803.5,2803.1,5.11353476]
[1740341849531,3.0,2803.5,2803.2,3.56734]
[1740341849824,3.0,2803.5,2803.3,0.07210538]
[1740341850049,3.56673,2803.7,2803.2,3.56726]
[1740341850331,4.35846,2803.8,2803.3,3.63925538]
[1740341851629,4.62490482,2803.8,2803.3,3.63925538]
[1740341852054,3.83310482,2803.8,2803.3,3.63925538]
[1740341852400,0.26644482,2803.8,2803.3,0.94012369]
[1740341852618,0.26644482,2803.8,2803.6,3.56681]
[1740341852827,0.26644482,2803.8,2803.7,0.07096893]
[1740341853030,0.26644482,2803.8,2803.5,3.56686]
[1740341853228,0.26644482,2803.8,2803.6,0.07084125]
[1740341853629,0.26644482,2803.8,2803.4,4.38989]
[1740341853820,0.26644482,2803.8,2803.5,0.07087001]
[1740341854222,3.56674,2803.7,2803.5,0.07087001]
[1740341854410,3.56684,2803.6,2803.5,0.07087001]
[1740341854614,3.56708,2803.5,2803.2,0.55]
[1740341854814,3.56708,2803.5,2803.3,0.07080405]
[1740341855011,3.56696,2803.5,2803.1,0.8228]
[1740341855212,4.37254,2803.6,2803.2,0.07083281]
[1740341855813,7.93949,2803.6,2803.2,0.07083281]
[1740341856021,3.56698,2803.5,2803.2,0.07083281]
[1740341856220,4.37254,2803.6,2803.2,0.07083281]
[1740341856539,4.37254,2803.6,2803.2,3.63815281]
[1740341857658,3.56671,2803.7,2803.2,4.97998309]
[1740341860837,3.83303482,2803.8,2803.2,4.97990309]
[1740341861041,3.83303482,2803.8,2803.3,3.56714]
[1740341861242,3.83303482,2803.8,2803.3,3.63550853]
[1740341861441,3.56677,2803.7,2803.3,3.63557853]
[1740341861752,7.39969482,2803.8,2803.3,3.63557853]
[1740341862208,3.83303482,2803.8,2803.3,3.63557853]
[1740341862713,3.83303482,2803.8,2803.4,3.56709]
[1740341862918,3.83303482,2803.8,2803.5,0.8228]
[1740341863133,3.83303482,2803.8,2803.5,0.88857413]
[1740341864926,3.56684,2803.6,2803.5,0.06577413]
[1740341865324,3.5671,2803.4,2803.0,6.2128]
[1740341865725,4.37254,2803.6,2803.0,9.7803]
[1740341866044,3.56699,2803.5,2803.0,9.7803]
[1740341866748,3.56699,2803.5,2803.1,3.56747]
[1740341870356,3.56699,2803.5,2803.0,4.3904]
[1740341871642,4.37254,2803.6,2803.0,0.8228]
[1740341871844,3.56684,2803.6,2803.2,3.56728]
[1740341875558,0.26644482,2803.8,2803.4,4.3396]
[1740341875764,0.26644482,2803.8,2803.5,3.56696]
[1740341875927,3.83303482,2803.8,2803.4,0.7726]
[1740341876123,3.56678,2803.7,2803.4,0.7726]
[1740341876361,3.83303482,2803.8,2803.4,0.7726]
[1740341878376,7.39972482,2803.8,2803.4,0.7726]
[1740341878572,7.39973482,2803.8,2803.4,0.7726]
[1740341879066,3.56672,2803.7,2803.4,0.7726]
[1740341880469,3.56694,2803.6,2803.5,0.06361703]
[1740341880856,3.56671,2803.7,2803.1,6.2129]
[1740341881059,3.56697,2803.5,2803.2,0.06363747]
[1740341881571,3.56685,2803.6,2803.2,0.06363747]
[1740341881877,3.56697,2803.5,2803.2,0.06363747]
[1740341882480,3.56684,2803.6,2803.2,0.06363747]
[1740341882856,3.56671,2803.7,2803.2,0.06363747]
[1740341883061,3.56671,2803.7,2803.2,3.63093747]
[1740341883260,3.56671,2803.7,2803.3,3.56719]
[1740341883465,3.56671,2803.7,2803.4,0.06136905]
[1740341885182,5.18476326,2803.8,2803.4,3.62845905]
[1740341885481,5.18476326,2803.8,2803.5,0.8229]
[1740341885653,3.56673,2803.7,2803.5,0.8229]
[1740341885854,3.56673,2803.7,2803.6,0.06131152]
[1740341887089,3.56673,2803.7,2803.6,0.75858556]
[1740341889185,5.18481326,2803.8,2803.6,0.75858556]
[1740341889769,3.56638,2804.0,2803.6,0.75858556]
[1740341890286,5.13621844,2804.2,2803.6,0.75858556]
[1740341890287,3.56616,2804.2,2803.7,3.56662]
[1740341890493,3.56622,2804.1,2803.6,5.19690312]
[1740341890814,3.56622,2804.1,2803.7,0.0611675]
[1740341893570,3.83382265,2804.1,2803.7,0.0611675]
[1740341894099,3.83382265,2804.1,2803.8,0.8217]
[1740341894398,3.83382265,2804.1,2803.9,0.06105702]
[1740341901686,0.26760265,2804.1,2803.9,0.06105702]
[1740341904022,3.83384265,2804.1,2803.9,0.06105702]
[1740341904522,0.26760265,2804.1,2803.9,0.06105702]
[1740341905618,3.83380265,2804.1,2803.9,0.06105702]
[1740341906714,0.26760265,2804.1,2803.9,0.06105702]
[1740341921156,5.18553109,2804.1,2803.9,0.06105702]
[1740341921478,1.61932109,2804.1,2803.7,3.56669]
[1740341921667,1.61932109,2804.1,2803.8,0.06076476]
[1740341921866,1.61932109,2804.1,2803.7,3.56669]
[1740341922068,1.61932109,2804.1,2803.8,0.06076476]
[1740341922268,1.61932109,2804.1,2803.7,3.56669]
[1740341922443,5.18552109,2804.1,2803.8,0.06076476]
[1740341922643,5.18552109,2804.1,2803.7,3.56669]
[1740341922845,5.18552109,2804.1,2803.8,0.06076476]
[1740341923057,5.18552109,2804.1,2803.7,3.56669]
[1740341923353,5.18552109,2804.1,2803.8,0.06076476]
[1740341923764,5.18552109,2804.1,2803.7,3.56669]
[1740341923965,5.18552109,2804.1,2803.9,0.06073601]
[1740341924287,5.18552109,2804.1,2804.0,0.06070725]
[1740341924487,5.18552109,2804.1,2803.7,3.56669]
[1740341924693,1.61932109,2804.1,2803.8,0.06076476]
[1740341924894,1.61932109,2804.1,2803.7,4.355488]
[1740341925078,1.61932109,2804.1,2803.8,0.06076476]
[1740341925279,1.61932109,2804.1,2803.7,4.355488]
[1740341925481,1.61932109,2804.1,2803.8,0.06076476]
[1740341925779,1.61932109,2804.1,2803.7,4.355488]
[1740341925957,1.61932109,2804.1,2803.9,0.06073601]
[1740341926358,1.61932109,2804.1,2803.7,4.355488]
[1740341926591,1.61932109,2804.1,2804.0,0.06070725]
[1740341927208,1.61932109,2804.1,2803.7,3.56665]
[1740341927385,0.26760265,2804.1,2804.0,0.06070725]
[1740341927587,0.26760265,2804.1,2803.7,7.13327]
[1740341927785,0.26760265,2804.1,2804.0,0.06070725]
[1740341927995,0.26760265,2804.1,2803.7,4.11671]
[1740341928157,0.26760265,2804.1,2804.0,0.06068256]
[1740341928357,0.26760265,2804.1,2803.7,4.11671]
[1740341928566,0.26760265,2804.1,2804.0,0.06065787]
[1740341928784,0.26760265,2804.1,2803.7,4.11671]
[1740341928991,0.26760265,2804.1,2804.0,0.06065787]
[1740341929495,0.26760265,2804.1,2803.7,4.11671]
[1740341929727,0.26760265,2804.1,2803.8,0.06071537]
[1740341930173,0.26760265,2804.1,2803.7,0.55]
[1740341930508,1.61932109,2804.1,2803.8,0.06071537]
[1740341930714,1.61932109,2804.1,2803.7,4.11669]
[1740341930881,1.61932109,2804.1,2803.9,0.06068662]
[1740341931064,1.61932109,2804.1,2803.7,4.11669]
[1740341931264,1.61932109,2804.1,2804.0,0.06065787]
[1740341931509,1.61932109,2804.1,2803.7,4.11669]
[1740341931865,1.61932109,2804.1,2803.8,0.06071537]
[1740341932079,1.61932109,2804.1,2803.7,4.11669]
[1740341932293,1.61932109,2804.1,2803.9,0.06068662]
[1740341932492,1.61932109,2804.1,2803.7,4.11669]
[1740341932676,1.61932109,2804.1,2804.0,0.06065787]
[1740341932999,0.26760265,2804.1,2803.7,4.11669]
[1740341933296,0.26760265,2804.1,2803.8,0.06071537]
[1740341933500,0.26760265,2804.1,2803.7,4.11669]
[1740341933666,0.26760265,2804.1,2803.9,0.06068662]
[1740341933853,0.26760265,2804.1,2803.7,4.11664]
[1740341934060,0.26760265,2804.1,2804.0,0.06065787]
[1740341934259,0.26760265,2804.1,2803.7,4.11664]
[1740341934698,0.26760265,2804.1,2803.8,0.06071537]
[1740341934929,0.26760265,2804.1,2803.7,4.11664]
[1740341935095,0.26760265,2804.1,2803.9,0.06068662]
[1740341935298,0.26760265,2804.1,2803.7,4.11664]
[1740341935497,0.26760265,2804.1,2804.0,0.06065787]
[1740341935728,0.26760265,2804.1,2803.7,4.11664]
[1740341936121,3.83387265,2804.1,2803.8,0.06071537]
[1740341936624,3.83387265,2804.1,2803.7,4.11664]
[1740341936805,3.83387265,2804.1,2803.9,0.06068662]
[1740341937127,3.83387265,2804.1,2803.7,4.11664]
[1740341937626,3.83387265,2804.1,2803.8,0.06071537]
[1740341937808,3.83387265,2804.1,2803.7,4.11664]
[1740341938002,3.83387265,2804.1,2803.8,0.06071537]
[1740341938209,3.83387265,2804.1,2803.7,4.11664]
[1740341938526,3.83387265,2804.1,2803.8,0.06071537]
[1740341939025,3.83387265,2804.1,2803.7,4.11664]
[1740341939332,3.83387265,2804.1,2803.9,0.06062898]
[1740341939532,3.83387265,2804.1,2803.8,0.06065773]
[1740341939732,3.83387265,2804.1,2804.0,0.7774164]
[1740341939929,3.78387265,2804.1,2804.0,0.71681618]
[1740341940134,3.78387265,2804.1,2804.0,0.06060022]
[1740341940339,9.8613142,2804.1,2804.0,0.06060022]
[1740341940644,4.34126,2803.5,2803.0,4.38283]
[1740341940806,3.56766,2803.0,2802.8,6.2053]
[1740341941009,3.56794,2802.8,2802.5,5.39]
[1740341941234,3.56794,2802.8,2802.5,6.41758334]
[1740341941439,3.56824,2802.5,2801.9,6.2053]
[1740341941746,0.7743,2802.6,2802.2,0.72896094]
[1740341941951,0.7743,2802.6,2802.2,4.29751094]
[1740341942160,0.7743,2802.6,2802.2,5.08414303]
[1740341942374,0.7743,2802.6,2802.2,0.78663209]
[1740341942579,0.7743,2802.6,2802.1,3.56868]
[1740341942732,4.34248,2802.6,2802.1,3.56868]
[1740341944035,4.61069776,2802.6,2802.1,3.56868]
[1740341946397,1.04251776,2802.6,2802.2,3.56858]
[1740341946702,1.04251776,2802.6,2802.2,3.56854]
[1740341946864,1.04251776,2802.6,2802.2,4.282259]
[1740341947178,1.35171844,2802.7,2802.3,0.8153]
[1740341947393,1.35171844,2802.7,2802.4,3.56836]
[1740341947571,5.69383844,2802.9,2802.4,3.56836]
[1740341947770,9.26165844,2802.9,2802.4,3.56836]
[1740341947996,0.26695932,2802.7,2802.3,4.38369]
[1740341948295,5.69383844,2802.9,2802.4,3.56833]
[1740341948882,3.56792,2802.8,2802.3,4.38379]
[1740341949074,1.35171844,2802.7,2802.3,4.38379]
[1740341949843,1.35171844,2802.7,2802.3,4.38371]
[1740341950464,1.35171844,2802.7,2802.4,3.56836]
[1740341952394,1.35171844,2802.7,2802.3,4.38379]
[1740341952897,1.35171844,2802.7,2802.3,0.8153]
[1740341953064,3.56871,2802.2,2801.9,5.39]
[1740341953271,3.56875,2802.1,2801.7,3.56919]
[1740341953467,4.92066844,2802.0,2801.7,0.435079]
[1740341953877,1.35171844,2802.0,2801.7,0.435079]
[1740341954193,4.38978,2802.1,2801.7,0.435079]
[1740341955269,1.35171844,2802.2,2801.8,0.05695604]
[1740341955470,1.35171844,2802.2,2801.7,4.004239]
[1740341955706,3.56837,2802.4,2802.0,4.35047]
[1740341956085,3.56851,2802.3,2802.1,0.05686966]
[1740341957015,3.56851,2802.3,2801.9,3.56899]
[1740341957215,3.56851,2802.3,2802.2,0.05685734]
[1740341957670,3.56851,2802.3,2801.9,3.56899]
[1740341957864,3.56851,2802.3,2802.2,0.05681615]
[1740341958067,3.56851,2802.3,2801.9,3.56899]
[1740341958269,3.56851,2802.3,2802.2,0.05681615]
[1740341958480,3.56877,2802.1,2801.8,0.7816]
[1740341958690,4.38994,2802.0,2801.5,3.5695]
[1740341958916,3.56901,2801.9,2801.5,4.900577]
[1740341959705,3.56901,2801.9,2801.5,1.331077]
[1740341961696,3.56919,2801.8,2801.5,1.331077]
[1740341962192,3.56901,2801.9,2801.5,4.900587]
[1740341962518,3.56926,2801.7,2801.4,5.39]
[1740341962725,3.56901,2801.9,2801.4,5.39]
[1740341962726,3.56914,2801.8,2801.4,5.39]
[1740341963892,3.56931,2801.7,2801.4,5.39]
[1740341964312,4.65768695,2802.0,2801.4,5.39]
[1740341964611,3.5691,2801.9,2801.4,8.95964]
[1740341964882,3.0,2802.3,2801.8,3.56911]
[1740341965028,6.56852,2802.3,2801.8,0.7816]
[1740341965426,6.56852,2802.3,2801.9,3.56899]
[1740341966228,6.56852,2802.3,2801.8,4.35072]
[1740341966527,3.5688,2802.1,2801.8,0.7816]
[1740341966689,0.821,2802.4,2801.8,0.7816]
[1740341966886,6.56856,2802.3,2801.8,4.35066]
[1740341967093,6.56856,2802.3,2801.8,5.197643]
[1740341968030,3.0,2802.3,2801.9,3.56893]
[1740341968732,0.821,2802.4,2801.9,3.56893]
[1740341968908,0.821,2802.4,2802.0,3.56881]
[1740341969231,4.38938,2802.4,2802.0,3.56881]
[1740341969436,0.821,2802.4,2802.0,3.56881]
[1740341970234,4.38945,2802.4,2801.9,3.569]
[1740341970452,7.11462256,2802.7,2802.1,0.05754525]
[1740341970653,0.26663771,2802.8,2802.2,0.7612]
[1740341970802,3.56807,2802.7,2802.3,3.56849]
[1740341971001,3.56807,2802.7,2802.3,4.27489791]
[1740341971323,3.56807,2802.7,2802.4,0.05740121]
[1740341971818,3.56755,2803.1,2802.4,0.56675112]
[1740341972004,3.56755,2803.1,2802.4,0.05740121]
[1740341972537,0.27039776,2803.0,2802.7,4.36543]
[1740341972745,0.7612,2803.4,2803.0,3.56757]
[1740341972746,0.7664,2803.4,2803.0,3.56757]
[1740341973037,0.7664,2803.4,2803.1,0.05708442]
[1740341973535,0.7664,2803.4,2803.0,3.56751]
[1740341973740,0.7664,2803.4,2803.1,0.05708442]
[1740341973939,0.7664,2803.4,2803.0,3.5676]
[1740341974117,0.7664,2803.4,2803.1,0.05670551]
[1740341974515,1.03528223,2803.4,2803.1,0.05670551]
[1740341975336,4.60237223,2803.4,2803.1,0.05670551]
[1740341975944,1.03528223,2803.4,2803.1,0.05670551]
[1740341976103,0.26888223,2803.4,2803.1,3.62417551]
[1740341976306,0.26888223,2803.4,2803.3,0.72909706]
[1740341976608,0.26888223,2803.4,2803.3,0.78485532]
[1740341977646,4.13156131,2803.6,2803.3,0.78485532]
[1740341977805,3.36516131,2803.6,2803.4,3.567]
[1740341978005,3.36516131,2803.6,2803.4,4.44215953]
[1740341978220,3.36516131,2803.6,2803.5,0.05552779]
[1740341978424,3.36516131,2803.6,2803.5,3.62248779]
[1740341979065,3.36516131,2803.6,2803.5,0.05552779]
[1740341983322,3.36516131,2803.6,2803.5,4.53474157]
[1740341983528,3.36516131,2803.6,2803.5,5.35154157]
[1740341988938,3.36516131,2803.6,2803.5,10.74154157]
[1740341996571,3.36516131,2803.6,2803.5,6.35778157]
[1740341996778,3.36516131,2803.6,2803.5,5.99552779]
[1740341996978,3.36516131,2803.6,2803.5,9.56248779]
[1740341999184,3.36516131,2803.6,2803.5,5.99552779]
[1740342000193,3.36516131,2803.6,2803.5,5.44552779]
[1740342000395,3.36516131,2803.6,2803.5,6.16963702]
[1740342000887,3.36516131,2803.6,2803.5,0.77963702]
[1740342001455,3.36516131,2803.6,2803.5,4.34659702]
[1740342003793,3.36516131,2803.6,2803.5,0.05552779]
[1740342004293,3.36516131,2803.6,2803.3,7.13436]
[1740342004494,3.36516131,2803.6,2803.5,0.05458926]
[1740342004696,3.36516131,2803.6,2803.4,0.05461802]
[1740342004918,3.36516131,2803.6,2803.5,0.05458926]
[1740342005373,3.36516131,2803.6,2803.5,3.62154926]
[1740342005790,3.36516131,2803.6,2803.5,0.05458926]
[1740342006185,3.36516131,2803.6,2803.5,3.62154926]
[1740342009949,3.36516131,2803.6,2803.5,0.05458926]
[1740342010379,3.36516131,2803.6,2803.3,0.55]
[1740342010584,3.36516131,2803.6,2803.4,3.62156748]
[1740342011610,3.36516131,2803.6,2803.4,0.05452748]
[1740342011812,4.74483613,2803.5,2803.4,0.05452748]
[1740342011986,6.98473613,2803.5,2802.5,3.56817]
[1740342012200,4.32781,2803.0,2802.6,0.05305157]
[1740342012492,3.56773,2802.9,2802.6,0.05305157]
[1740342012676,0.7601,2803.0,2802.6,0.05305157]
[1740342012876,3.56787,2802.8,2802.3,3.56849]
[1740342013083,3.5678,2802.9,2802.7,0.05025276]
[1740342013277,3.56786,2802.8,2802.4,3.56836]
[1740342013516,3.56786,2802.8,2802.3,4.464279]
[1740342013813,3.56786,2802.8,2802.3,8.032699]
[1740342014118,3.56786,2802.8,2802.3,4.464269]
[1740342014616,3.56786,2802.8,2802.3,8.032699]
[1740342014821,0.7891,2802.6,2801.9,0.8766703]
[1740342015022,0.7891,2802.6,2801.8,5.39]
[1740342015322,0.7891,2802.5,2801.7,3.56924]
[1740342015509,3.56846,2802.4,2801.9,0.04820274]
[1740342015819,3.56856,2802.3,2802.0,0.04817395]
[1740342016345,3.56849,2802.3,2801.7,3.56924]
[1740342016485,3.56847,2802.4,2802.1,0.04814515]
[1740342016686,4.3574,2802.5,2801.9,3.56891]
[1740342016921,0.7891,2802.5,2802.2,0.04811636]
[1740342017124,0.7891,2802.5,2802.0,3.56879]
[1740342017460,0.7891,2802.8,2802.4,3.56824]
[1740342017722,5.505,2803.4,2802.1,1.71502415]
[1740342017723,0.7891,2803.1,2802.1,1.71502415]
[1740342017948,5.25,2803.4,2802.1,1.71502415]
[1740342017949,0.26433795,2803.3,2803.0,3.56754]
[1740342018321,0.26433795,2803.3,2803.1,0.04785735]
[1740342018508,3.83156795,2803.3,2803.1,0.04785735]
[1740342018688,3.36516131,2803.6,2803.3,3.56712]
[1740342018887,0.7891,2803.7,2803.3,3.56709]
[1740342019190,1.06214738,2803.7,2803.4,0.04777104]
[1740342020100,0.7891,2803.7,2803.5,3.56692]
[1740342020429,4.35552,2804.0,2803.6,0.04771352]
[1740342020787,3.56653,2803.9,2803.6,0.04771352]
[1740342020993,3.56658,2803.8,2803.3,0.55]
[1740342021192,3.56658,2803.8,2803.4,0.04777104]
[1740342021397,3.56658,2803.8,2803.2,7.13453]
[1740342021616,2.16030526,2804.0,2803.4,3.56702]
[1740342021617,5.16030526,2804.0,2803.4,3.56702]
[1740342021931,5.16030526,2804.0,2803.3,0.04744629]
[1740342021932,3.56662,2803.8,2803.3,3.61460629]
[1740342022126,3.56662,2803.8,2803.5,0.04738876]
[1740342022327,3.56662,2803.8,2803.4,0.04741752]
[1740342022531,3.56662,2803.8,2803.6,0.04736]
[1740342022733,3.56662,2803.8,2803.5,0.04738876]
[1740342023030,3.56662,2803.8,2803.6,0.04736]
[1740342023528,3.56662,2803.8,2803.3,3.56715]
[1740342023698,3.56662,2803.8,2803.7,0.04729014]
[1740342023899,3.56662,2803.8,2803.3,3.56715]
[1740342024128,3.56662,2803.8,2803.7,0.04729014]
[1740342024351,3.56662,2803.8,2803.3,3.56715]
[1740342024520,3.56662,2803.8,2803.7,0.04729014]
[1740342024713,3.56662,2803.8,2803.3,3.56715]
[1740342025002,3.56662,2803.8,2803.7,0.04729014]
[1740342025167,3.56662,2803.8,2803.3,3.56715]
[1740342025665,3.56662,2803.8,2803.4,0.04737642]
[1740342027058,7.13331,2803.8,2803.4,0.04737642]
[1740342027259,3.56662,2803.8,2803.4,0.04737642]
[1740342027459,3.56662,2803.8,2803.4,3.61445642]
[1740342027610,3.56662,2803.8,2803.4,0.04737642]
[1740342029829,7.13328,2803.8,2803.4,0.04737642]
[1740342030152,3.56662,2803.8,2803.4,0.04737642]
[1740342030353,3.83426493,2803.9,2803.4,3.61439642]
[1740342031257,3.83426493,2803.9,2803.7,0.70670595]
[1740342031630,3.83426493,2803.9,2803.8,0.04511239]
[1740342032125,3.83426493,2803.9,2803.7,0.70670595]
[1740342032334,3.83426493,2803.9,2803.8,0.04511239]
[1740342032762,3.83426493,2803.9,2803.7,0.70670595]
[1740342032965,3.83426493,2803.9,2803.8,0.08798884]
[1740342033150,3.83426493,2803.9,2803.7,0.70670595]
[1740342033352,3.56658,2803.8,2803.7,0.70670595]
[1740342034284,7.40079493,2803.9,2803.7,0.70670595]
[1740342034488,3.56658,2803.8,2803.7,0.70670595]
[1740342035991,0.26779493,2803.9,2803.7,0.70670595]
[1740342036582,0.26779493,2803.9,2803.7,4.27339595]
[1740342039181,0.26779493,2803.9,2803.8,3.56658]
[1740342039379,0.26779493,2803.9,2803.7,1.49072355]
[1740342039676,0.26779493,2803.9,2803.7,0.70670595]
[1740342039863,0.26779493,2803.9,2803.7,4.27341595]
[1740342041299,0.26779493,2803.9,2803.7,7.84001595]
[1740342041467,0.26779493,2803.9,2803.7,4.27330595]
[1740342042306,0.26779493,2803.9,2803.8,3.56658]
[1740342043706,0.26779493,2803.9,2803.6,3.56675]
[1740342044803,0.26779493,2803.9,2803.6,4.830203]
[1740342045103,0.26779493,2803.9,2803.7,3.56664]
[1740342045472,0.26779493,2803.9,2803.8,0.08784909]
[1740342045845,0.26779493,2803.9,2803.7,3.56664]
[1740342045966,0.26779493,2803.9,2803.8,0.08784909]
[1740342046170,0.26779493,2803.9,2803.7,3.56664]
[1740342046403,0.26779493,2803.9,2803.8,0.08784909]
[1740342046621,0.26779493,2803.9,2803.7,3.56664]
[1740342046820,0.26779493,2803.9,2803.8,0.08784909]
[1740342047121,0.26779493,2803.9,2803.7,3.56664]
[1740342047321,0.26779493,2803.9,2803.8,0.08784909]
[1740342047640,0.26779493,2803.9,2803.7,3.56664]
[1740342047946,0.26779493,2803.9,2803.8,0.08784909]
[1740342048298,0.26779493,2803.9,2803.6,0.55]
[1740342048497,0.26779493,2803.9,2803.8,0.08713838]
[1740342048744,0.26779493,2803.9,2803.7,0.08716866]
[1740342049043,0.26779493,2803.9,2803.8,0.08713838]
[1740342049443,0.26779493,2803.9,2803.6,4.11682]
[1740342049645,0.26779493,2803.9,2803.8,0.08713838]
[1740342049847,0.26779493,2803.9,2803.7,0.08716866]
[1740342050013,0.26779493,2803.9,2803.8,0.08713838]